{"text_format":"1","workbook":"xlsx","n_sheets":11,"sheets":["Cover sheet","Contact info","Name & Location","Costs","Licenses & Permits","Environmental considerations","Project & Construction sched.","Payment schedule","Operation & Maintenance","Financing plan","Sheet1"],"not_rendered":{"charts":0,"images":0,"macros":1,"external_links":0,"defined_names":0,"comments":0,"pivot_tables":0},"unopened":[],"bounds":{"document_bytes":16777216,"sheet_cells":100000,"rows_first":2000,"rows_last":500,"rows_between":2000,"halvings":0,"cell_chars":16384,"cell_head_chars":4096},"cells_cut":0,"cells_raw":0,"read":"whole","date_system":"1900"}

{"sheet":"Cover sheet","index":0,"n_rows":22,"n_cols":2,"rows_kept":22,"cut":false,"hidden":false,"merged":[[1,0,5,6],[0,0,0,6],[21,0,21,6],[22,0,27,6]]}
[]
["The cells below collect the values from the \"Costs\" worksheet and totals the cost in each category.  The total of the columns below will be the price that Evergy will use as the cost to evaluate bids.  The \"Additional\" category is included to allow for any discrepancies that are not captured.   Provide rationale and breakdown of the additional costs in the space provided. Complete the blue shaded cells below and all 9 worksheets in this workbook."]
[]
[]
[]
[]
["Project name",{"$f":"'Name & Location'!B3","v":"  "}]
["Respondent",{"$f":"'Contact info'!B3","v":" "}]
["Project location",{"$f":"'Name & Location'!B7","v":"  "}]
["Nameplate Capacity (MW)"]
["PTC Qualification (%)",{"$f":"Costs!B3","v":0}]
["Expected COD",{"$f":"'Project & Construction sched.'!A26","v":"XX/XX/20XX"}]
["Category","Total cost"]
["Equipment",{"$f":"SUM(Costs!E11:E25)","v":0}]
["Material",{"$f":"SUM(Costs!H11:H25)","v":0}]
["Labor",{"$f":"SUM(Costs!K11:K25)","v":0}]
["Other",{"$f":"SUM(Costs!L11:L25)","v":0}]
["Interconnection",{"$f":"Costs!E28+Costs!H28+Costs!K28+Costs!L28+Costs!E29+Costs!H29+Costs!K29+Costs!L29","v":0}]
["Additional"]
["Total cost",{"$f":"SUM(B14:B19)","v":0}]
["O&M Building (optional)",{"$f":"'Operation & Maintenance'!B7","v":0}]
["Provide rationale for any additional cost"]

{"sheet":"Contact info","index":1,"n_rows":9,"n_cols":2,"rows_kept":9,"cut":false,"hidden":false,"merged":[[1,1,1,10],[7,1,7,10],[6,1,6,10],[8,1,8,10],[4,1,4,10],[5,1,5,10],[2,1,2,10],[3,1,3,10]]}
[]
["General info","Response"]
["Company Name"," "]
["Company address"]
["Bidder contact"]
["Name"]
["Email"]
["Title"]
["Phone number"]

{"sheet":"Name & Location","index":2,"n_rows":36,"n_cols":5,"rows_kept":36,"cut":false,"hidden":false,"merged":[[19,0,22,0],[19,1,22,10],[1,1,1,10],[31,0,31,10],[32,1,32,3],[32,4,32,10],[24,1,24,10],[23,1,23,10],[2,0,5,0],[6,0,9,0],[11,0,14,0],[15,0,18,0],[2,1,5,10],[6,1,9,10],[11,1,14,10],[15,1,18,10],[10,1,10,10],[27,1,27,10],[25,1,25,10],[26,1,26,10],[35,1,35,3],[33,4,33,10],[34,4,34,10],[35,4,35,10],[33,1,33,3],[34,1,34,3],[28,1,28,10],[29,1,29,10],[30,1,30,10]]}
[]
["Name and location","Response"]
["Project name","  "]
[]
[]
[]
["Project location (City, County, State)","  "]
[]
[]
[]
["Location size (acres)"]
["Describe the benefits of the proposed project and reasons for selecting this site"]
[]
[]
[]
["Describe the proposed land rights"]
[]
[]
[]
["If any of the land is to be owned provide details on amount of land, current ownership state, and expected cost"]
[]
[]
[]
["Current site control (%) "]
["Expected date for 100% site control"]
["Average cost of land currently under lease ($/acre/year)"]
["Expected average land cost once full site control is achieved ($/acre/year)"]
["Average expected annual land escalation cost (%)"]
["Expected annual PILOT payments ($)"]
["Expected length of PILOT (years)"]
["Describe current status of PILOT discussion with local officials"]
[]
["Required documents","Select yes if included",null,null,"If no please explain"]
["Map of the site"]
["Copies of contracts with details on leases, easements or option agreements"]
["Copies of general terms for any agreements"]

{"sheet":"Costs","index":3,"n_rows":29,"n_cols":12,"rows_kept":29,"cut":false,"hidden":false,"merged":[[28,0,28,1],[18,0,18,1],[22,0,22,1],[27,0,27,1],[24,0,24,1],[21,0,21,1],[20,0,20,1],[19,0,19,1],[26,0,26,1]]}
[]
["Estimated delivered LCOE ($/MWh)",0]
["PTC qualification (%)"]
[]
[]
[null,"Instructions: Fill all cells below besides the total cost columns."]
[null,"The formula for the total cost columns is:  quantity (or hrs) multiplied by the unit cost (or rate)"]
[null,"If a cell is not applicable or the information is unknown leave that cell blank. If detailed cost breakdown is not available put total cost into other cost"]
["Costs"]
["Breakdown","Units","Equipment quantity","Equipment unit cost","Equipment total cost","Material quantity","Material unit cost","Material total cost","Labor hrs","Labor rate","Labor total cost","Other costs"]
["WIND TURBINE EQUIPMENT"]
["Tower","EA",null,0,{"$f":"D12*C12","v":0},null,0,{"$f":"G12*F12","v":0},null,0,{"$f":"I12*J12","v":0},0]
["Blades","EA",null,0,0,null,0,{"$f":"G13*F13","v":0},null,0,0,0]
["Nacelle","EA",null,0,0,null,0,{"$f":"G14*F14","v":0},null,0,{"$f":"I14*J14","v":0},0]
["Generator","EA",null,0,0,null,0,{"$f":"G15*F15","v":0},null,0,0,0]
["Transformer","EA",null,0,0,null,0,{"$f":"G16*F16","v":0},null,0,{"$f":"I16*J16","v":0},0]
["Other",null,null,0,0,null,0,{"$f":"G17*F17","v":0},null,0,0,0]
[]
["EPC SERVICES - Site prep",null,null,0,{"$f":"D19*C19","v":0},null,0,{"$f":"G19*F19","v":0},null,0,{"$f":"J19*I19","v":0},0]
["EPC SERVICES - BoP Material Purchase, Labor and Install",null,null,0,{"$f":"D20*C20","v":0},null,0,{"$f":"G20*F20","v":0},null,0,{"$f":"J20*I20","v":0},0]
["EPC SERVICES - Project management labor",null,null,0,0,null,0,{"$f":"G21*F21","v":0},null,0,0,0]
["EPC SERVICES - General conditions, overhead, and profit",null,null,0,0,null,0,{"$f":"G22*F22","v":0},null,0,0,0]
["EPC SERVICES - Design and Engineering",null,null,0,0,null,0,{"$f":"G23*F23","v":0},null,0,0,0]
[]
["EPC Contingencies",null,null,0,{"$f":"D25*C25","v":0},null,0,{"$f":"G25*F25","v":0},null,0,{"$f":"J25*I25","v":0},0]
[]
["Estimated interconnection costs"]
["Point of interconnection",null,null,0,{"$f":"D28*C28","v":0},null,0,{"$f":"G28*F28","v":0},null,0,{"$f":"J28*I28","v":0},0]
["Network upgrades",null,null,0,{"$f":"D29*C29","v":0},null,0,{"$f":"G29*F29","v":0},null,0,{"$f":"J29*I29","v":0},0]

{"sheet":"Licenses & Permits","index":4,"n_rows":24,"n_cols":9,"rows_kept":24,"cut":false,"hidden":false,"merged":[[1,0,1,4],[1,5,1,14],[2,0,5,4],[2,5,5,14],[6,0,9,4],[6,5,9,14],[19,0,19,4],[19,5,19,7],[19,8,19,14],[14,0,17,4],[14,5,17,14],[0,0,0,14],[20,0,20,4],[20,5,20,7],[20,8,20,14],[23,0,23,4],[23,5,23,7],[23,8,23,14],[21,0,21,4],[21,5,21,7],[21,8,21,14],[22,0,22,4],[22,5,22,7],[22,8,22,14],[10,0,13,4],[10,5,13,14],[18,0,18,14]]}
[]
["License & permits",null,null,null,null,"Response"]
["Provide an overview of any local zoning permit requirements, timeline to acquire, and the status of acquiring those permits"]
[]
[]
[]
["Provide an overview of local government interactions, describe any local support"]
[]
[]
[]
["Provide a summary of any discussions with the local governments regarding road use and commitments to repair after construction"]
[]
[]
[]
["Provide an overview of any state site permit requirements and the status of acquiring those permits"]
[]
[]
[]
[]
["Required documents",null,null,null,null,"Indicate yes if included",null,null,"If no please explain"]
["Permit documents - including but not limited to supporting studies, surveys, and data"]
["Permit analysis - provide an analysis of all permits required for the project, including but not limited to any state permits, local permits, take permits, wetland permits, storm water permits"]
["Permit timeline and estimated costs"]
["Draft local and site agreement documents"]

{"sheet":"Environmental considerations","index":5,"n_rows":47,"n_cols":5,"rows_kept":47,"cut":false,"hidden":false,"merged":[[2,1,5,10],[6,0,9,0],[6,1,9,10],[26,0,29,0],[26,1,29,10],[10,0,13,0],[10,1,13,10],[14,0,17,0],[18,0,21,0],[36,1,36,3],[35,1,35,3],[34,1,34,3],[1,1,1,10],[33,1,33,3],[33,4,33,10],[14,1,17,10],[18,1,21,10],[30,0,30,10],[31,1,31,3],[31,4,31,10],[32,1,32,3],[32,4,32,10],[22,0,25,0],[22,1,25,10],[2,0,5,0],[46,4,46,10],[46,1,46,3],[45,1,45,3],[44,1,44,3],[43,1,43,3],[44,4,44,10],[45,4,45,10],[43,4,43,10],[34,4,34,10],[35,4,35,10],[36,4,36,10],[37,4,37,10],[38,4,38,10],[39,4,39,10],[40,4,40,10],[41,4,41,10],[42,4,42,10],[37,1,37,3],[42,1,42,3],[41,1,41,3],[40,1,40,3],[39,1,39,3],[38,1,38,3]]}
[]
["Environmental considerations","Response"]
["Describe all of the completed environmental studies"]
[]
[]
[]
["Describe remaining environmental studies and plan to complete them"]
[]
[]
[]
["Describe any environmental permitting risks and impact to the project, if any"]
[]
[]
[]
["Provide a general overview and status of discussions with permitting agencies including the ones listed in this section"]
[]
[]
[]
["Provide an overview of the history and background of the site in regards to environmental issues"]
[]
[]
[]
["Provide an overview of potential wetland impacts"]
[]
[]
[]
["Describe mitigation plans for environmental concerns raised from the studies, if any"]
[]
[]
[]
[]
["Required documents","Select yes if included",null,null,"If no please explain"]
["Completed environmental studies"]
["Schedule of remaining environmental studies"]
["Copies of documents on known or past environmental issues and how the issue was resolved"]
["Tribal Cultural Resources - Copies of assessments or analysis of potential impacts to tribal cultural resources in the area and any communications with local Native American Tribe(s) regarding the project."]
["Cultural Resource Studies - Copies of state historic preservation consultation and literature survey reports for the project."]
["T&E and State Protected Species - Copies of T&E and T&E Critical Habitat surveys completed.  Provide a summary of any T&E species that may require additional follow-up work or mitigation"]
["USFWS Consultation - Copies of all USFWS correspondence to date"]
["State DWP Consultation -  Copies of all State DWP correspondence to date"]
["Department of Agriculture - Provide amount of impacted Prime Farm Land and any correspondence with either federal or state Departments of Agriculture."]
["Army Corps of Engineers - Copies of any 404 jurisdictional determination obtained by the project, if needed."]
["Wetlands - Completed wetland delineation reports"]
["Noise Model -  Copies of any noise modeling report developed for the project if required by federal, state, or local permitting agencies.  If not required, provide justification."]
["Communications Studies - Copies of any microwave beam path and local broadcast interference assessments or studies conducted for the project, if applicable."]
["Vegetation Plan -  Copies of any vegetation and vegetation management plans for the site."]
["Aeronautical Studies - Copies of any information concerning aeronautical assessments or studies (including FAA Study numbers, if available) that have been conducted or initiated for the project."]

{"sheet":"Project & Construction sched.","index":6,"n_rows":29,"n_cols":5,"rows_kept":29,"cut":false,"hidden":false,"merged":[[2,0,5,0],[2,1,5,10],[6,0,9,0],[6,1,9,10],[24,1,24,10],[19,1,19,10],[20,1,20,10],[21,1,21,10],[1,1,1,10],[28,1,28,3],[28,4,28,10],[10,0,13,0],[10,1,13,10],[14,1,14,10],[17,1,17,10],[15,1,15,10],[16,1,16,10],[18,1,18,10],[26,0,26,10],[27,1,27,3],[27,4,27,10],[25,1,25,10],[22,1,22,10],[23,1,23,10]]}
[]
["Project and construction schedule","Response"]
["Describe current state of the project"]
[]
[]
[]
["Describe current state of construction on site"]
[]
[]
[]
["Fill out the construction milestone schedule below"]
[]
[]
[]
["Date","Construction Milestones"]
["XX/XX/20XX","Contract Completion - Seller and all required counterparties have executed major procurement contracts, the Construction Contract, any operating agreements, and the Interconnection Agreement needed to commence construction of the Facility."]
["XX/XX/20XX","Permit Milestone - Seller shall have obtained all required permits needed to construct the Facility."]
["XX/XX/20XX","Site Control Milestone - Seller shall have obtained all required site control for the construction of the Facility."]
["XX/XX/20XX","Financing Milestone - Seller shall have achieved closing on financing for the Facility or provided the Company with proof of financial capability to construct the Facility."]
["XX/XX/20XX","Construction Beginning Milestone - Construction begins on the wind farm"]
["XX/XX/20XX","Initial Construction Completion Milestone - Seller shall have laid the foundations for all facility buildings, inverters, generating facilities and step-up transformation facilities in the collector substation."]
["XX/XX/20XX","Generator Milestone - The generator(s)/step-up transformer shall have been delivered to, and installed at the Site."]
["XX/XX/20XX","Interconnection and Construction Completion Milestone - Seller shall have constructed Seller’s Interconnection Facilities and wind farm.  Facilities are capable of being energized."]
["XX/XX/20XX","Facility Testing Milestone - Start-up testing of the Facility commences."]
["XX/XX/20XX","REC Milestone - Seller shall make all applications and/or filings required by Applicable Law for REC accreditation and for the provision of such RECs to Company."]
["XX/XX/20XX","Commercial Operation Date"]
[]
["Required documents","Select yes if included",null,null,"If no please explain"]
["Project schedule"]

{"sheet":"Payment schedule","index":7,"n_rows":34,"n_cols":8,"rows_kept":34,"cut":false,"hidden":false,"merged":[[32,0,32,1],[33,0,33,1],[2,1,2,7],[1,1,1,7],[3,3,3,7],[29,1,29,7],[30,0,30,1],[31,0,31,1]]}
[]
[null,"Instructions: Milestone payments should be tied to construction progress.  Schedule is indicative only.  Provide expected NTP date to autofill date column"]
[null,"Indicative Progress Payment schedule"]
[null,"NTP Date","2022-06-20"]
["Month since NTP","Date\n(mm/yyyy)","Engineering, Procurement & Construction Costs","Land and Easement Costs","Transmission Interconnection  costs related to the delivery of energy from the RFP Project to the POI/POD","Optional Items ","All Other Project Related Payments to be Made by Evergy","Total"]
[1,{"$f":"EDATE($C$4,A6-1)","v":"2022-06-20"},0,0,0,0,0,{"$f":"SUM(C6:G6)","v":0}]
[{"$f":"A6+1","v":2},{"$f":"EDATE($C$4,A7-1)","v":"2022-07-20"},0,0,0,0,0,{"$f":"SUM(C7:G7)","v":0}]
[{"$f":"A7+1","v":3},"2022-08-20",0,0,0,0,0,0]
[4,"2022-09-20",0,0,0,0,0,0]
[5,"2022-10-20",0,0,0,0,0,0]
[6,"2022-11-20",0,0,0,0,0,0]
[7,"2022-12-20",0,0,0,0,0,0]
[8,"2023-01-20",0,0,0,0,0,0]
[9,"2023-02-20",0,0,0,0,0,0]
[10,"2023-03-20",0,0,0,0,0,0]
[11,"2023-04-20",0,0,0,0,0,0]
[12,"2023-05-20",0,0,0,0,0,{"$f":"SUM(C17:G17)","v":0}]
[13,"2023-06-20",0,0,0,0,0,0]
[14,"2023-07-20",0,0,0,0,0,0]
[15,"2023-08-20",0,0,0,0,0,0]
[16,"2023-09-20",0,0,0,0,0,0]
[17,"2023-10-20",0,0,0,0,0,0]
[18,"2023-11-20",0,0,0,0,0,0]
[19,"2023-12-20",0,0,0,0,0,0]
[20,"2024-01-20",0,0,0,0,0,0]
[21,"2024-02-20",0,0,0,0,0,0]
[{"$f":"A26+1","v":22},"2024-03-20",0,0,0,0,0,0]
[{"$f":"A27+1","v":23},"2024-04-20",0,0,0,0,0,0]
[{"$f":"A28+1","v":24},"2024-05-20",0,0,0,0,0,0]
[null,"Indicative 3 Payment schedule"]
["Milestone",null,"Engineering, Procurement & Construction Costs","Land and Easement Costs","Transmission Interconnection  costs related to the delivery of energy from the RFP Project to the POI/POD","Optional Items ","All Other Project Related Payments to be Made by Evergy","Total"]
["Mechanical Completion",null,0,0,0,0,0,{"$f":"SUM(C32:G32)","v":0}]
["Substantial Completion",null,0,0,0,0,0,{"$f":"SUM(C33:G33)","v":0}]
["Final Completion",null,0,0,0,0,0,0]

{"sheet":"Operation & Maintenance","index":8,"n_rows":18,"n_cols":5,"rows_kept":18,"cut":false,"hidden":false,"merged":[[17,1,17,3],[17,4,17,10],[1,1,1,10],[2,0,5,0],[2,1,5,10],[6,0,9,0],[6,1,9,10],[10,0,13,0],[10,1,13,10],[14,0,14,10],[15,1,15,3],[15,4,15,10],[16,1,16,3],[16,4,16,10]]}
[]
["Operation and maintenance","Response"]
["Describe the O&M building proposed"]
[]
[]
[]
["O&M building cost ($)",0]
[]
[]
[]
["Describe the O&M services, packages or contracts that can be provided.  Include the O&M cost breakdown along with a description of the services provided"]
[]
[]
[]
[]
["Required documents","Select yes if included",null,null,"If no please explain"]
["O&M building proposal"]
["O&M services proposal"]

{"sheet":"Financing plan","index":9,"n_rows":3,"n_cols":2,"rows_kept":3,"cut":false,"hidden":false,"merged":[[3,0,3,10],[1,1,1,10],[2,1,2,10]]}
[]
["Financing plan","Response"]
["Describe the financing or funding plan, equity participants and any project financing guarantees"]

{"sheet":"Sheet1","index":10,"n_rows":10,"n_cols":8,"rows_kept":10,"cut":false,"hidden":true,"merged":[]}
[]
[null,null,null,null,"DISIS-2016-001",null,null,"Phase I"]
[null,"Yes",null,null,"DISIS-2016-002",null,null,"Phase II"]
[null,"No",null,null,"DISIS-2017-001",null,null,"Facilities Study"]
[null,null,null,null,"DISIS-2017-002"]
[null,null,null,null,"DISIS-2018-001"]
[null,null,null,null,"DISIS-2018-002"]
[null,null,null,null,"DISIS-2019-001"]
[null,null,null,null,"DISIS-2020-001"]
[null,null,null,null,"DISIS-2021-001"]